bitfinex/quotes_BTCUSD_20250508
["timestamp","ask_amount","ask_price","bid_price","bid_amount"]
[1746733739096,0.02210872,101350.0,101340.0,1.43501879]
[1746733740706,0.02210872,101350.0,101340.0,1.08399891]
[1746733740958,0.02210872,101350.0,101340.0,1.43501879]
[1746733741184,0.03750872,101350.0,101340.0,1.43501879]
[1746733741435,0.03750872,101350.0,101340.0,1.08399891]
[1746733741669,0.04737464,101350.0,101340.0,1.43501879]
[1746733742283,0.04737464,101350.0,101340.0,1.08399891]
[1746733742527,0.04737473,101350.0,101340.0,0.68399891]
[1746733742651,0.04737464,101350.0,101340.0,1.03501879]
[1746733742997,0.03750872,101350.0,101340.0,1.43501879]
[1746733743231,0.04737464,101350.0,101340.0,1.43501879]
[1746733743447,0.04737464,101350.0,101340.0,0.68399891]
[1746733743448,0.03750872,101350.0,101340.0,0.68399891]
[1746733743654,0.03750872,101350.0,101340.0,1.03501879]
[1746733743856,0.03750872,101350.0,101340.0,1.43501879]
[1746733745456,0.02210872,101350.0,101340.0,1.43501879]
[1746733746869,0.02210872,101350.0,101340.0,1.08399891]
[1746733747065,0.02210872,101350.0,101340.0,1.43501879]
[1746733749590,0.02210872,101350.0,101340.0,1.08399891]
[1746733749790,0.02210872,101350.0,101340.0,1.43501879]
[1746733750241,0.02210872,101350.0,101340.0,1.08399891]
[1746733750410,0.02210872,101350.0,101340.0,1.43501879]
[1746733751234,0.02210872,101350.0,101340.0,1.08399891]
[1746733751439,0.02210872,101350.0,101340.0,1.43501879]
[1746733759090,0.00620872,101350.0,101340.0,1.46631879]
[1746733759469,0.00620872,101350.0,101340.0,2.89552867]
[1746733760090,0.00127439,101350.0,101340.0,2.89552867]
[1746733760286,0.00369462,101350.0,101340.0,2.89552867]
[1746733760491,0.0636927,101370.0,101360.0,0.22691278]
[1746733760741,0.06378601,101370.0,101360.0,0.67859958]
[1746733760903,0.06378601,101370.0,101360.0,0.68476775]
[1746733761328,0.07365066,101370.0,101360.0,1.093974]
[1746733761727,0.07565066,101370.0,101360.0,1.093974]
[1746733762070,0.07865066,101370.0,101360.0,1.093974]
[1746733762271,0.06878601,101370.0,101360.0,1.093974]
[1746733762485,0.07865066,101370.0,101360.0,1.093974]
[1746733762690,0.07865066,101370.0,101360.0,0.74295412]
[1746733762898,0.07865066,101370.0,101360.0,1.10090477]
[1746733763097,0.06878601,101370.0,101360.0,1.10090477]
[1746733763251,0.07865066,101370.0,101360.0,1.14735204]
[1746733763616,0.06878601,101370.0,101360.0,0.79633216]
[1746733763823,0.06878601,101370.0,101360.0,1.14735204]
[1746733763969,0.05238591,101370.0,101360.0,1.14735204]
[1746733764325,0.04252155,101370.0,101360.0,1.14735204]
[1746733764489,0.05238591,101370.0,101360.0,1.14735204]
[1746733764688,0.04252155,101370.0,101360.0,1.14735204]
[1746733765035,0.05238591,101370.0,101360.0,1.14735204]
[1746733765318,0.06225037,101370.0,101360.0,1.14735204]
[1746733765660,0.06225037,101370.0,101360.0,0.79633216]
[1746733765858,0.07815037,101370.0,101360.0,0.79633216]
[1746733766084,0.07815037,101370.0,101360.0,1.14735204]
[1746733767151,0.06828591,101370.0,101360.0,0.79633216]
[1746733767320,0.06828591,101370.0,101360.0,1.14735204]
[1746733767829,0.07815046,101370.0,101360.0,0.79633216]
[1746733767981,0.07815046,101370.0,101360.0,1.14735204]
[1746733768325,0.03869331,101370.0,101360.0,1.14735204]
[1746733768526,0.00709331,101370.0,101360.0,3.32550492]
[1746733768748,0.00709331,101370.0,101360.0,2.97448504]
[1746733768949,0.0108487,101370.0,101360.0,2.97448504]
[1746733769101,0.0108487,101370.0,101360.0,1.51805204]
[1746733769308,0.0108487,101370.0,101360.0,3.29522104]
[1746733769497,0.0108487,101370.0,101360.0,3.16385904]
[1746733769698,0.0108487,101370.0,101360.0,2.82208577]
[1746733769895,0.0108487,101370.0,101360.0,2.76771477]
[1746733770340,0.0088487,101370.0,101360.0,2.76771477]
[1746733770557,0.0038487,101370.0,101360.0,2.76871477]
[1746733770760,0.01371277,101370.0,101360.0,2.69709477]
[1746733770922,0.01371277,101370.0,101360.0,2.60032577]
[1746733771113,0.01371267,101370.0,101360.0,2.60032577]
[1746733771848,0.01361936,101370.0,101360.0,2.60032577]
[1746733772008,0.00375539,101370.0,101360.0,2.60032577]
[1746733772796,0.00375539,101370.0,101360.0,2.48027077]
[1746733773056,0.01361936,101370.0,101360.0,2.48027077]
[1746733773250,0.01361936,101370.0,101360.0,2.54071686]
[1746733774243,0.00375539,101370.0,101360.0,2.54071686]
[1746733774630,0.00375539,101370.0,101360.0,2.89173674]
[1746733774834,0.00375539,101370.0,101360.0,2.54071686]
[1746733776469,0.00231039,101370.0,101360.0,2.54071686]
[1746733776845,0.05415744,101380.0,101370.0,0.56689041]
[1746733777048,0.04429386,101380.0,101370.0,0.6737255]
[1746733777188,0.04429386,101380.0,101370.0,1.03167615]
[1746733777370,0.0048405,101380.0,101370.0,1.0408824]
[1746733777571,0.0147035,101380.0,101370.0,1.4408824]
[1746733777974,0.0147035,101380.0,101370.0,1.08986252]
[1746733778276,0.0167035,101380.0,101370.0,1.4408824]
[1746733778516,0.0177035,101380.0,101370.0,1.4408824]
[1746733778735,0.0078405,101380.0,101370.0,1.4408824]
[1746733779073,0.0078405,101380.0,101370.0,2.83596828]
[1746733779844,0.0078405,101380.0,101370.0,3.25226828]
[1746733780286,0.0078405,101380.0,101370.0,2.55022852]
[1746733780451,0.0078405,101380.0,101370.0,3.25226828]
[1746733780656,0.0058405,101380.0,101370.0,3.25226828]
[1746733781030,0.0058405,101380.0,101370.0,3.28012928]
[1746733781232,0.00090822,101380.0,101370.0,3.28012928]
[1746733781849,0.002,101390.0,101380.0,0.24336801]
[1746733782052,0.002,101390.0,101380.0,1.84133998]
[1746733782245,0.002,101390.0,101380.0,1.76816998]
[1746733782634,0.00569429,101390.0,101380.0,1.846993]
[1746733782835,0.00569429,101390.0,101380.0,1.49597312]
[1746733783026,0.00569429,101390.0,101380.0,1.846993]
[1746733783366,0.00569429,101390.0,101380.0,1.49597312]
[1746733783575,0.00569429,101390.0,101380.0,1.863493]
[1746733784174,0.00569429,101390.0,101380.0,1.51247312]
[1746733784375,0.00569429,101390.0,101380.0,1.863493]
[1746733784584,0.00569429,101390.0,101380.0,1.51247312]
[1746733785204,0.00569429,101390.0,101380.0,1.863493]
[1746733785445,0.002,101390.0,101380.0,1.863493]
[1746733786365,0.002,101390.0,101380.0,1.51247312]
[1746733786602,0.002,101390.0,101380.0,1.863493]
[1746733787188,0.00752016,101390.0,101380.0,1.863493]
[1746733787395,0.002,101390.0,101380.0,1.51247312]
[1746733787600,0.002,101390.0,101380.0,1.863493]
[1746733788416,0.00752844,101390.0,101380.0,1.863493]
[1746733789014,0.00752844,101390.0,101380.0,1.71916221]
[1746733789331,0.00752844,101390.0,101380.0,1.74875266]
[1746733790599,0.00752844,101390.0,101380.0,1.39773278]
[1746733790807,0.00752844,101390.0,101380.0,1.74875266]
[1746733791475,0.02282844,101390.0,101380.0,0.63609978]
[1746733791659,0.02282844,101390.0,101380.0,0.98711966]
[1746733791827,0.00581955,101390.0,101380.0,0.98711966]
[1746733792150,0.00581955,101390.0,101380.0,1.08115966]
[1746733792356,0.00581955,101390.0,101380.0,1.09735715]
[1746733792946,0.00581955,101390.0,101380.0,1.00331715]
[1746733793157,0.00581955,101390.0,101380.0,1.09723715]
[1746733793329,0.00581955,101390.0,101380.0,1.08103715]
[1746733793524,0.00581955,101390.0,101380.0,0.73001727]
[1746733793792,0.00581955,101390.0,101380.0,2.90316927]
[1746733794015,0.00581955,101390.0,101380.0,3.12437215]
[1746733794705,0.00680384,101390.0,101380.0,3.12437215]
[1746733795012,0.00680384,101390.0,101380.0,3.07672663]
[1746733795235,0.00680384,101390.0,101380.0,3.31060663]
[1746733795384,0.00680384,101390.0,101380.0,1.48512163]
[1746733795594,0.00680384,101390.0,101380.0,1.00541175]
[1746733795792,0.00680384,101390.0,101380.0,1.35643163]
[1746733796008,0.00680384,101390.0,101380.0,1.26139163]
[1746733796165,0.00680384,101390.0,101380.0,1.11348175]
[1746733796362,0.02220384,101390.0,101380.0,1.46450163]
[1746733796674,0.02220384,101390.0,101380.0,1.11348175]
[1746733796934,0.02220384,101390.0,101380.0,1.41822715]
[1746733797433,0.02220384,101390.0,101380.0,1.06720727]
[1746733797604,0.05722837,101390.0,101380.0,0.23609727]
[1746733797765,0.04736596,101390.0,101380.0,0.23609727]
[1746733797963,0.04736596,101390.0,101380.0,0.57609727]
[1746733798375,0.05722818,101390.0,101380.0,0.23609727]
[1746733798585,0.06709059,101390.0,101380.0,0.23609727]
[1746733798790,0.05722818,101390.0,101380.0,0.23609727]
[1746733799035,0.05722818,101390.0,101380.0,0.57609727]
[1746733799673,0.03750384,101390.0,101380.0,0.57609727]
[1746733799890,0.04736596,101390.0,101380.0,0.57609727]
[1746733800116,0.03750384,101390.0,101380.0,0.57609727]
[1746733800362,0.07673917,101390.0,101380.0,0.02330268]
[1746733800565,0.06709148,101390.0,101380.0,0.24128543]
[1746733800770,0.60550715,101390.0,101380.0,0.02330268]
[1746733800976,0.82138184,101390.0,101380.0,0.02330268]
[1746733801154,0.56548196,101390.0,101380.0,0.02330268]
[1746733801392,1.35650184,101390.0,101380.0,0.02330268]
[1746733801588,0.24924745,101360.0,101350.0,0.06941021]
[1746733801779,0.24924745,101360.0,101350.0,0.06950352]
[1746733801983,0.25373626,101360.0,101350.0,0.06950352]
[1746733802406,0.25373626,101360.0,101350.0,0.08315006]
[1746733802758,0.61929699,101360.0,101350.0,0.08415006]
[1746733803232,0.26827711,101360.0,101350.0,0.08415006]
[1746733803535,0.61929699,101360.0,101350.0,0.08515006]
[1746733803668,0.26827711,101360.0,101350.0,0.07594381]
[1746733803863,0.26827711,101360.0,101350.0,0.27327977]
[1746733804125,0.2734678,101360.0,101350.0,0.29301306]
[1746733804645,0.2734678,101360.0,101350.0,0.21916256]
[1746733804985,0.26360247,101360.0,101350.0,0.0119601]
[1746733805202,0.26360247,101360.0,101350.0,0.21916276]
[1746733805414,0.26360247,101360.0,101350.0,0.20929606]
[1746733805621,0.26360247,101360.0,101350.0,0.21916276]
[1746733805823,0.26360247,101360.0,101350.0,0.22902926]
[1746733806051,0.26360247,101360.0,101350.0,0.23889566]
[1746733806749,0.25373684,101360.0,101350.0,0.21916276]
[1746733807046,0.24387112,101360.0,101350.0,0.20929597]
[1746733807436,0.24387112,101360.0,101350.0,0.21916247]
[1746733807657,0.04655434,101360.0,101350.0,0.22902887]
[1746733807859,0.07615112,101360.0,101350.0,0.23889508]
[1746733808086,0.27346761,101360.0,101350.0,0.23889508]
[1746733808205,0.03668881,101360.0,101350.0,0.23889508]
[1746733808406,0.05641918,101360.0,101350.0,0.59978107]
[1746733808624,0.06628481,101360.0,101350.0,0.24876119]
[1746733808815,0.07615053,101360.0,101350.0,0.23889508]
[1746733809458,0.08601635,101360.0,101350.0,0.23889508]
[1746733810554,0.28333284,101360.0,101350.0,0.23889508]
[1746733811141,0.2734678,101360.0,101350.0,0.20929597]
[1746733811518,0.25373684,101360.0,101350.0,0.00209331]
[1746733811743,0.65183332,101360.0,101350.0,0.00209331]
[1746733812164,0.61929757,101360.0,101350.0,0.00209331]
[1746733812564,0.71996449,101360.0,101350.0,0.00209331]
[1746733812787,0.71996449,101360.0,101350.0,9.331e-05]
[1746733813023,0.72196449,101360.0,101350.0,9.331e-05]
[1746733814142,0.37094461,101360.0,101350.0,9.331e-05]
[1746733814367,0.36894461,101360.0,101350.0,9.331e-05]
[1746733814593,0.37294461,101360.0,101350.0,9.331e-05]
[1746733814814,0.37394461,101360.0,101350.0,9.331e-05]
[1746733815135,0.37294461,101360.0,101350.0,9.331e-05]
[1746733815627,0.72496449,101360.0,101350.0,9.331e-05]
[1746733816262,1.06496449,101360.0,101350.0,9.331e-05]
[1746733816480,1.20948449,101360.0,101350.0,9.331e-05]
[1746733817744,0.7094558,101360.0,101350.0,9.331e-05]
[1746733818173,0.59424803,101360.0,101350.0,9.331e-05]
[1746733819004,0.95980876,101360.0,101350.0,0.00626277]
[1746733820539,0.60878888,101360.0,101350.0,0.00626277]
[1746733821890,0.98339731,101360.0,101350.0,0.00626277]
[1746733822246,1.06047568,101360.0,101350.0,9.331e-05]
[1746733823254,2.16429556,101360.0,101350.0,9.331e-05]
[1746733823769,1.81327568,101360.0,101350.0,9.331e-05]
[1746733824183,1.80827568,101360.0,101350.0,9.331e-05]
[1746733824548,1.91379568,101360.0,101350.0,9.331e-05]
[1746733824751,1.84279268,101360.0,101350.0,9.331e-05]
[1746733825052,1.93935268,101360.0,101350.0,9.331e-05]
[1746733826862,1.22103568,101360.0,101350.0,9.331e-05]
[1746733828066,1.22103568,101360.0,101350.0,0.00626418]
[1746733830236,1.06448317,101350.0,101340.0,0.002]
[1746733830489,1.11515009,101350.0,101340.0,0.002]
[1746733830702,1.21581701,101350.0,101340.0,0.002]
[1746733830838,1.24338728,101350.0,101340.0,0.002]
[1746733831238,1.58338728,101350.0,101340.0,0.002]
[1746733831436,0.60195256,101330.0,101320.0,0.002]
[1746733831662,1.15788286,101330.0,101320.0,0.002]
[1746733833162,1.15888286,101330.0,101320.0,0.002]
[1746733833573,1.20988286,101330.0,101320.0,0.002]
[1746733833811,1.23749256,101330.0,101320.0,0.002]
[1746733834029,1.64851244,101330.0,101320.0,0.002]
[1746733834451,0.94447268,101330.0,101320.0,0.002]
[1746733834610,0.84195268,101330.0,101320.0,0.002]
[1746733834787,1.19497256,101330.0,101320.0,0.002]
[1746733835001,1.19297256,101330.0,101320.0,0.002]
[1746733835409,1.28297053,101330.0,101320.0,0.002]
[1746733835620,1.29297053,101330.0,101320.0,0.002]
[1746733835837,1.28997053,101330.0,101320.0,0.01120703]
[1746733836247,1.29697053,101330.0,101320.0,0.01120703]
[1746733836710,1.19397256,101330.0,101320.0,0.01120703]
[1746733837261,0.84295268,101330.0,101320.0,0.01120703]
[1746733837475,1.29581256,101330.0,101320.0,0.01120703]
[1746733839041,0.71465268,101330.0,101320.0,0.01120703]
[1746733839251,0.71465268,101330.0,101320.0,0.24917104]
[1746733839252,0.03445971,101330.0,101320.0,0.24917104]
[1746733839579,0.05419632,101330.0,101320.0,0.25904037]
[1746733839775,0.06406496,101330.0,101320.0,0.2689095]
[1746733839983,0.06006584,101330.0,101320.0,0.2689095]
[1746733840154,0.05806584,101330.0,101320.0,0.2689095]
[1746733840369,0.05906584,101330.0,101320.0,0.2689095]
[1746733841327,0.01959136,101330.0,101320.0,0.37944545]
[1746733841553,0.04919632,101330.0,101320.0,0.37944545]
[1746733842384,0.04919632,101330.0,101320.0,0.38561564]
[1746733842950,0.23670395,101330.0,101320.0,0.04807722]
[1746733843175,0.23670395,101330.0,101320.0,0.26521094]
[1746733843375,0.2268357,101330.0,101320.0,0.24547161]
[1746733843713,0.2268357,101330.0,101320.0,0.26521075]
[1746733844116,0.2268357,101330.0,101320.0,0.25600372]
[1746733844335,0.2268357,101330.0,101320.0,0.26520413]
[1746733844504,0.2268357,101330.0,101320.0,0.27507355]
[1746733844700,0.2268357,101330.0,101320.0,0.0173706]
[1746733846258,0.2268357,101330.0,101320.0,0.0334706]
[1746733846848,0.2268357,101330.0,101320.0,0.24073451]
[1746733847056,0.2268357,101330.0,101320.0,0.25633451]
[1746733847265,0.2268357,101330.0,101320.0,0.26620384]
[1746733847844,0.21696715,101330.0,101320.0,0.2563347]
[1746733848358,0.21696715,101330.0,101320.0,0.28594287]
[1746733849842,0.01959136,101330.0,101320.0,0.28594287]
[1746733850048,0.02945952,101330.0,101320.0,0.75440013]
[1746733850462,0.03932787,101330.0,101320.0,0.75440013]
[1746733850683,0.02945942,101330.0,101320.0,0.40338025]
[1746733850893,0.03932777,101330.0,101320.0,0.75440013]
[1746733851314,0.04919622,101330.0,101320.0,0.75440013]
[1746733851758,0.05906477,101330.0,101320.0,0.40338025]
[1746733851939,0.25644046,101330.0,101320.0,0.40338025]
[1746733852133,0.25644114,101330.0,101320.0,0.40338025]
[1746733852333,0.23670434,101330.0,101320.0,0.37377267]
[1746733852699,0.23670434,101330.0,101320.0,0.39351161]
[1746733853282,0.23670434,101330.0,101320.0,0.36390305]
[1746733853484,0.23670434,101330.0,101320.0,0.37377267]
[1746733854085,0.23670434,101330.0,101320.0,0.04037203]
[1746733854086,0.22683579,101330.0,101320.0,0.04037203]
[1746733854526,0.57785567,101330.0,101320.0,0.02427203]
[1746733854675,0.22683579,101330.0,101320.0,0.02427203]
[1746733855308,0.22683579,101330.0,101320.0,0.0173706]
[1746733856485,0.22683579,101330.0,101320.0,0.0335706]
[1746733856634,0.22683579,101330.0,101320.0,0.0173706]
[1746733858434,0.22683579,101330.0,101320.0,0.0327706]
[1746733858638,0.22683579,101330.0,101320.0,0.04264031]
[1746733859493,0.57785567,101330.0,101320.0,0.04264031]
[1746733859892,0.57785567,101330.0,101320.0,0.0173706]
[1746733859893,0.22683579,101330.0,101320.0,0.0173706]
[1746733860041,0.57785567,101330.0,101320.0,0.0173706]
[1746733860447,1.06436344,101330.0,101320.0,0.0173706]
[1746733860648,1.29514452,101320.0,101310.0,0.00690143]
[1746733860852,0.24845476,101310.0,101300.0,0.002]
[1746733861048,1.51255191,101310.0,101300.0,0.002]
[1746733861896,0.57970483,101300.0,101290.0,0.06026734]
[1746733862092,1.13463223,101300.0,101290.0,0.06074042]
[1746733862611,1.23529915,101300.0,101290.0,0.06074042]
[1746733863078,1.13463223,101300.0,101290.0,0.06074042]
[1746733863596,1.13463223,101300.0,101290.0,0.00047308]
[1746733863597,1.13563223,101300.0,101290.0,0.00047308]
[1746733863797,0.78461235,101300.0,101290.0,0.00047308]
[1746733863996,1.13563223,101300.0,101290.0,0.00047308]
[1746733865009,1.23829915,101300.0,101290.0,0.00047308]
[1746733865412,1.13763223,101300.0,101290.0,0.00047308]
[1746733867732,1.12103223,101300.0,101290.0,0.00047308]
[1746733867902,1.00879223,101300.0,101290.0,0.00047308]
[1746733868112,1.10403223,101300.0,101290.0,0.00047308]
[1746733868488,1.11857308,101300.0,101290.0,0.00047308]
[1746733868617,1.10403223,101300.0,101290.0,0.00047308]
[1746733868817,1.11857308,101300.0,101290.0,0.00047308]
[1746733870171,0.7675532,101300.0,101290.0,0.00047308]
[1746733870502,1.11857308,101300.0,101290.0,0.00047308]
[1746733871244,1.21924,101300.0,101290.0,0.00047308]
[1746733871843,1.25144,101300.0,101290.0,0.00047308]
[1746733872297,1.15077308,101300.0,101290.0,0.00047308]
[1746733872500,1.11753308,101300.0,101290.0,0.00047308]
[1746733874304,0.7665132,101300.0,101290.0,0.00047308]
[1746733874508,0.6723132,101300.0,101290.0,0.00047308]
[1746733875106,1.02333308,101300.0,101290.0,0.00047308]
[1746733875309,1.124,101300.0,101290.0,0.00664673]
[1746733875517,1.02333308,101300.0,101290.0,0.00664673]
[1746733875983,1.02333308,101300.0,101290.0,0.00047308]
[1746733877043,1.05473308,101300.0,101290.0,0.00047308]
[1746733877941,1.10473308,101300.0,101290.0,0.00047308]
[1746733878390,0.7537132,101300.0,101290.0,0.00047308]
[1746733878598,1.2054,101300.0,101290.0,0.00047308]
[1746733879354,1.2044,101300.0,101290.0,0.00047308]
[1746733879557,1.2024,101300.0,101290.0,0.00047308]
[1746733879763,1.2094,101300.0,101290.0,0.00047308]
[1746733880611,1.10873308,101300.0,101290.0,0.00047308]
[1746733881714,1.05873308,101300.0,101290.0,0.00047308]
[1746733881934,1.11873308,101300.0,101290.0,0.00047308]
[1746733882095,1.50975296,101300.0,101290.0,0.00047308]
[1746733882306,1.15873308,101300.0,101290.0,0.00047308]
[1746733882514,1.2594,101300.0,101290.0,0.00047308]
[1746733882718,1.28696598,101300.0,101290.0,0.00047308]
[1746733883434,1.63798586,101300.0,101290.0,0.00047308]
[1746733884210,1.73086586,101300.0,101290.0,0.00047308]
[1746733884421,1.37984598,101300.0,101290.0,0.00047308]
[1746733884627,1.73086586,101300.0,101290.0,0.00047308]
[1746733884959,1.68086586,101300.0,101290.0,0.00047308]
[1746733885732,1.32984598,101300.0,101290.0,0.00047308]
[1746733888403,0.74317235,101300.0,101290.0,0.00047308]
[1746733888610,1.23623223,101300.0,101290.0,0.00047308]
[1746733888815,1.20077308,101300.0,101290.0,0.00047308]
[1746733889225,1.18565308,101300.0,101290.0,0.00047308]
[1746733889466,1.11925308,101300.0,101290.0,0.0066477]
[1746733889663,1.21992,101300.0,101290.0,0.0066477]
[1746733890469,1.26992,101300.0,101290.0,0.0066477]
[1746733890653,1.26992,101300.0,101290.0,0.00664768]
[1746733890862,1.21992,101300.0,101290.0,0.00664768]
[1746733891422,0.7682332,101300.0,101290.0,0.00664768]
[1746733891624,1.14688097,101300.0,101290.0,0.00664768]
[1746733891825,1.11925308,101300.0,101290.0,0.00664768]
[1746733892253,1.16925308,101300.0,101290.0,0.00664768]
[1746733892620,1.14690047,101300.0,101290.0,0.00664768]
[1746733893524,1.14690047,101300.0,101290.0,0.00664764]
[1746733893924,0.70396059,101300.0,101290.0,0.00664764]
[1746733894136,1.14590047,101300.0,101290.0,0.01587136]
[1746733894517,1.14582047,101300.0,101290.0,0.03087136]
[1746733894805,1.14582047,101300.0,101290.0,0.01587136]
[1746733895034,0.79480059,101300.0,101290.0,0.01587136]
[1746733895248,1.05498047,101300.0,101290.0,0.01587136]
[1746733895459,1.14578047,101300.0,101290.0,0.01587136]
[1746733895867,0.79476059,101300.0,101290.0,0.01587136]
[1746733896070,0.79476059,101300.0,101290.0,0.04737136]
[1746733896071,1.14578047,101300.0,101290.0,0.04737136]
[1746733896497,0.25862419,101300.0,101290.0,0.24482421]
[1746733896695,0.22110543,101300.0,101290.0,0.04737136]
[1746733896807,0.23564628,101300.0,101290.0,0.04737136]
[1746733897474,0.22577481,101300.0,101290.0,0.04737136]
[1746733897674,0.21877481,101300.0,101290.0,0.0411968]
[1746733897890,0.21877481,101300.0,101290.0,0.03197308]
[1746733898108,0.22277481,101300.0,101290.0,0.03197308]
[1746733898311,0.22377481,101300.0,101290.0,0.03197308]
[1746733898511,0.21977481,101300.0,101290.0,0.03197308]
[1746733898900,0.22177481,101300.0,101290.0,0.03197308]
[1746733900214,0.57279469,101300.0,101290.0,0.03197308]
[1746733900563,0.22177481,101300.0,101290.0,0.03197308]
[1746733902555,0.22177481,101300.0,101290.0,0.22942593]
[1746733902762,0.23684818,101300.0,101290.0,0.24917072]
[1746733903004,0.23684818,101300.0,101290.0,0.24917091]
[1746733903205,0.23684818,101300.0,101290.0,0.25904316]
[1746733903617,0.03941482,101300.0,101290.0,0.25904316]
[1746733903825,0.23684818,101300.0,101290.0,0.25904316]
[1746733904026,0.23684818,101300.0,101290.0,0.26891531]
[1746733904226,0.23684818,101300.0,101290.0,0.25904316]
[1746733904653,0.23684818,101300.0,101290.0,0.25904326]
[1746733904863,0.03941482,101300.0,101290.0,0.27878746]
[1746733905073,0.01967178,101300.0,101290.0,0.73047368]
[1746733905285,0.03941393,101300.0,101290.0,0.3794538]
[1746733905444,0.02954266,101300.0,101290.0,0.73047368]
[1746733905610,0.03941403,101300.0,101290.0,0.73047368]
[1746733905824,0.01967139,101300.0,101290.0,0.73047368]
[1746733906034,0.01967158,101300.0,101290.0,0.73047368]
[1746733906445,0.01967158,101300.0,101290.0,0.3794538]
[1746733906657,0.02954266,101300.0,101290.0,0.73047368]
[1746733906858,0.01967139,101300.0,101290.0,0.73047368]
[1746733907055,0.03941345,101300.0,101290.0,0.73047368]
[1746733907263,0.02954227,101300.0,101290.0,0.73047368]
[1746733907466,0.03941335,101300.0,101290.0,0.73047368]
[1746733907678,0.04928462,101300.0,101290.0,0.73047368]
[1746733907888,0.23684778,101300.0,101290.0,0.13264]
[1746733908098,0.65652491,101300.0,101290.0,0.03197308]
[1746733908340,0.30550503,101300.0,101290.0,0.03197308]
[1746733908549,0.2269767,101300.0,101290.0,0.03197308]
[1746733909650,0.2269767,101300.0,101290.0,0.00047308]
[1746733910377,0.24151755,101300.0,101290.0,0.00047308]
[1746733910574,0.59253743,101300.0,101290.0,0.00047308]
[1746733911373,0.24151755,101300.0,101290.0,0.00047308]
[1746733911893,0.59253743,101300.0,101290.0,0.01585913]
[1746733913179,0.68079274,101300.0,101290.0,0.01585913]
[1746733913385,0.24151755,101300.0,101290.0,0.01585913]
[1746733914929,0.22676744,101300.0,101290.0,0.01585913]
[1746733915211,0.2324467,101300.0,101290.0,0.01585913]
[1746733915355,0.2324467,101300.0,101290.0,0.04685913]
[1746733916521,0.2324467,101300.0,101290.0,0.24431198]
[1746733916724,0.2324467,101300.0,101290.0,0.04685913]
[1746733917067,0.22752494,101300.0,101290.0,0.04685913]
[1746733917766,0.21298409,101300.0,101290.0,0.25418452]
[1746733918177,0.21154796,101300.0,101290.0,0.25418452]
[1746733918419,0.21154796,101300.0,101290.0,0.24431198]
[1746733919412,0.20167649,101300.0,101290.0,0.04685913]
[1746733919794,0.20167649,101300.0,101290.0,0.24431198]
[1746733919999,0.20167649,101300.0,101290.0,0.25418408]
[1746733921029,0.02398568,101300.0,101290.0,0.63483266]
[1746733921229,0.04372803,101300.0,101290.0,0.63483266]
[1746733921596,0.04372803,101300.0,101290.0,0.47235739]
[1746733921722,0.01411401,101300.0,101290.0,0.57302431]
[1746733921923,0.02398519,101300.0,101290.0,0.55762685]
[1746733922373,0.03385656,101300.0,101290.0,0.55762685]
[1746733922548,0.02398519,101300.0,101290.0,0.55762685]
[1746733922757,0.03385656,101300.0,101290.0,0.55762685]
[1746733923157,0.02398509,101300.0,101290.0,0.55762685]
[1746733923388,0.03385636,101300.0,101290.0,0.55762685]
[1746733923792,0.02398509,101300.0,101290.0,0.55762685]
[1746733923941,0.03385636,101300.0,101290.0,0.21719735]
[1746733924149,0.03385636,101300.0,101290.0,0.56821723]
[1746733924545,0.03385636,101300.0,101290.0,0.60001723]
[1746733925156,0.03385646,101300.0,101290.0,0.61976212]
[1746733925861,0.03385646,101300.0,101290.0,0.26874224]
[1746733926352,0.0197444,101290.0,101280.0,0.6417448]
[1746733926549,0.03393549,101290.0,101280.0,1.01141271]
[1746733926750,0.24126078,101290.0,101280.0,0.03444727]
[1746733926949,0.22151697,101290.0,101280.0,0.03444727]
[1746733927191,0.22151697,101290.0,101280.0,0.23191962]
[1746733927365,0.22151697,101290.0,101280.0,0.00204727]
[1746733927695,0.22151697,101290.0,101280.0,0.00304727]
[1746733927885,0.22151697,101290.0,101280.0,0.01946337]
[1746733928683,0.22151697,101290.0,101280.0,0.21693572]
[1746733929439,0.22151697,101290.0,101280.0,0.01946337]
[1746733929575,0.22151697,101290.0,101280.0,0.22680933]
[1746733929780,0.21164462,101290.0,101280.0,0.23668285]
[1746733930006,0.21164462,101290.0,101280.0,0.24655627]
[1746733930201,0.21164462,101290.0,101280.0,0.25642949]
[1746733930404,0.21164462,101290.0,101280.0,0.28762949]
[1746733930602,0.21164462,101290.0,101280.0,0.27775627]
[1746733930931,0.21164462,101290.0,101280.0,0.28762959]
[1746733931137,0.21164462,101290.0,101280.0,0.64852269]
[1746733931305,0.21164462,101290.0,101280.0,0.26788285]
[1746733931512,0.20177218,101290.0,101280.0,0.26788285]
[1746733931687,0.20177218,101290.0,101280.0,0.27775617]
[1746733931891,0.20310069,101290.0,101280.0,0.27775617]
[1746733932446,0.20310069,101290.0,101280.0,0.28467956]
[1746733933641,0.20310069,101290.0,101280.0,0.05758676]
[1746733933920,0.20310069,101290.0,101280.0,0.02638676]
[1746733934337,0.20310069,101290.0,101280.0,0.24360624]
[1746733934967,0.20310069,101290.0,101280.0,0.23373272]
[1746733935758,0.77598373,101290.0,101280.0,0.02638676]
[1746733936018,0.70082834,101290.0,101280.0,0.02638676]
[1746733936223,0.70082834,101290.0,101280.0,0.01946337]
[1746733936423,0.70082834,101290.0,101280.0,0.01946463]
[1746733938022,0.70082834,101290.0,101280.0,0.01329025]
[1746733938229,0.34980846,101290.0,101280.0,0.00404727]
[1746733938437,0.70082834,101290.0,101280.0,0.01097401]
[1746733938636,0.33470846,101290.0,101280.0,0.01097401]
[1746733938817,0.31830846,101290.0,101280.0,0.01097401]
[1746733938993,0.75621252,101290.0,101280.0,0.00404727]
[1746733939194,0.70142834,101290.0,101280.0,0.00404727]
[1746733939847,0.70142834,101290.0,101280.0,0.00304727]
[1746733940060,0.70142834,101290.0,101280.0,0.00204727]
[1746733940202,0.70242834,101290.0,101280.0,0.00204727]
[1746733940413,1.13341451,101290.0,101280.0,0.00204727]
[1746733940616,1.16112876,101290.0,101280.0,0.00204727]
[1746733940812,1.85392876,101290.0,101280.0,0.00204727]
[1746733941688,1.76394259,101290.0,101280.0,0.00204727]
[1746733943678,2.12496247,101290.0,101280.0,0.00204727]
[1746733944080,1.43216247,101290.0,101280.0,0.00204727]
[1746733944369,1.48216247,101290.0,101280.0,0.00204727]
[1746733944570,0.78012271,101290.0,101280.0,0.00204727]
[1746733944828,1.54994006,101290.0,101280.0,0.00204727]
[1746733946605,1.57784696,101290.0,101280.0,0.00204727]
[1746733946973,1.57628028,101290.0,101280.0,0.00204727]
[1746733950624,1.52628028,101290.0,101280.0,0.00204727]
[1746733950810,0.60328119,101270.0,101260.0,0.002]
[1746733951003,0.79644863,101270.0,101260.0,0.00204725]
[1746733951213,1.14746851,101270.0,101260.0,0.00204725]
[1746733951543,1.22768498,101270.0,101260.0,0.00204725]
[1746733952376,0.70788863,101270.0,101260.0,0.00204725]
[1746733952635,0.33764692,101270.0,101260.0,0.00204725]
[1746733952837,0.35604692,101270.0,101260.0,0.00204725]
[1746733953068,0.37334692,101270.0,101260.0,0.00204725]
[1746733953618,0.7243668,101270.0,101260.0,0.00204725]